bitfinex/quotes_ETHUSD_20240910
["timestamp","ask_amount","ask_price","bid_price","bid_amount"]
[1725967441265,1.78470392,2353.8,2353.3,2.8085]
[1725967441572,1.78470392,2353.7,2353.3,2.8085]
[1725967444616,1.78470392,2353.9,2353.4,0.08498007]
[1725967444908,1.78470392,2354.0,2353.5,2.8829]
[1725967445059,1.78470392,2354.0,2353.5,3.23468801]
[1725967445265,1.78470392,2354.0,2353.5,2.8829]
[1725967446688,1.78470392,2354.1,2353.5,2.8829]
[1725967447006,1.78470392,2354.1,2353.7,2.2834]
[1725967447462,1.78470392,2354.2,2353.7,2.2834]
[1725967447812,1.78470392,2354.3,2353.8,2.65810382]
[1725967448100,4.63470392,2354.4,2353.9,2.8341]
[1725967448300,4.63470392,2354.4,2354.0,2.2841]
[1725967451495,3.28417066,2354.3,2354.0,2.2841]
[1725967452520,3.28417066,2354.3,2353.7,2.4559]
[1725967452673,3.28417066,2354.3,2353.8,0.55]
[1725967455684,1.49946674,2354.3,2353.8,0.55]
[1725967455886,3.28417066,2354.3,2353.8,0.55]
[1725967456071,3.28417066,2354.3,2353.7,2.4559]
[1725967456419,1.49946674,2354.1,2353.7,2.4559]
[1725967457125,3.28417066,2354.3,2353.7,2.4559]
[1725967457289,3.28417066,2354.3,2353.7,3.44949]
[1725967457606,1.78470392,2354.2,2353.7,2.4559]
[1725967459891,1.49946674,2354.1,2353.7,2.4559]
[1725967460194,1.49946674,2353.9,2353.4,2.2975]
[1725967460535,1.49946674,2353.9,2353.2,2.2975]
[1725967460675,3.28417066,2353.9,2353.2,2.2975]
[1725967460877,1.78470392,2353.8,2353.2,2.2975]
[1725967461219,1.49946674,2353.7,2353.2,2.2975]
[1725967465132,3.28417066,2353.7,2353.2,2.2975]
[1725967465625,1.49946674,2353.5,2353.0,9.7767]
[1725967465833,1.49946674,2353.3,2353.0,7.48]
[1725967466060,1.49946674,2353.3,2352.8,2.2967]
[1725967474694,2.4913,2353.2,2352.6,2.2509]
[1725967475596,1.49946674,2353.1,2352.6,2.2509]
[1725967481504,1.49946674,2353.1,2352.4,21.9119]
[1725967481654,1.89854341,2353.1,2352.4,2.3819]
[1725967483498,2.3988,2353.0,2352.4,2.3819]
[1725967485657,1.49946674,2352.9,2352.4,2.3819]
[1725967485858,1.49946674,2352.9,2352.3,7.48]
[1725967487101,1.49946674,2352.9,2352.2,2.4092]
[1725967489055,2.3543,2352.6,2352.0,29.4435]
[1725967489262,2.3543,2352.6,2352.1,0.55]
[1725967501527,2.291,2352.8,2352.1,0.55]
[1725967501738,2.67004667,2352.8,2352.1,0.55]
[1725967501901,2.291,2352.6,2352.1,0.55]
[1725967502107,2.291,2352.6,2352.0,2.4335]
[1725967502323,2.291,2352.6,2351.9,19.53]
[1725967503389,1.49946674,2352.5,2351.9,19.53]
[1725967503600,2.466,2352.3,2351.9,19.53]
[1725967505193,2.466,2352.3,2352.0,19.53]
[1725967509897,3.96546674,2352.3,2352.0,19.53]
[1725967510940,2.3025,2352.2,2352.0,19.53]
[1725967511095,2.3025,2352.2,2351.6,2.3644]
[1725967511096,2.92929667,2352.2,2351.7,19.53]
[1725967511295,2.3025,2352.2,2351.8,0.42712932]
[1725967511504,1.49946674,2352.1,2351.7,19.53]
[1725967511709,1.49946674,2352.1,2351.6,2.3644]
[1725967511710,1.49946674,2352.1,2351.8,19.53]
[1725967513365,1.49946674,2352.1,2351.7,19.53]
[1725967516617,1.87966341,2352.1,2351.5,19.53]
[1725967516858,1.78470392,2352.5,2351.5,19.53]
[1725967516859,2.3381,2351.8,2351.5,19.53]
[1725967517351,4.78470392,2352.4,2351.5,19.53]
[1725967517352,2.3381,2352.0,2351.5,19.53]
[1725967517562,2.3381,2352.0,2351.5,21.8538]
[1725967519551,3.76326674,2352.3,2351.5,21.8538]
[1725967520131,3.76326674,2352.3,2351.5,2.3238]
[1725967520343,3.76326674,2352.3,2351.5,2.4088423]
[1725967520531,3.76326674,2352.3,2351.6,2.19388423]
[1725967520941,3.76326674,2352.3,2351.7,0.55]
[1725967521265,2.3389,2352.2,2351.7,0.55]
[1725967521559,2.3389,2352.2,2351.6,0.55]
[1725967523241,2.3389,2352.2,2351.6,2.79038]
[1725967524334,2.2615,2352.0,2351.6,0.55]
[1725967524522,2.2615,2352.0,2351.5,0.55]
[1725967525228,2.63759667,2352.0,2351.5,0.55]
[1725967525426,1.49946674,2351.9,2351.5,0.55]
[1725967525625,1.49946674,2351.9,2351.4,19.53]
[1725967525626,2.2602,2351.8,2351.4,19.53]
[1725967526044,2.2602,2351.8,2351.2,19.53]
[1725967526245,2.2602,2351.8,2351.2,19.75796042]
[1725967526769,2.2602,2351.8,2351.3,0.0850488]
[1725967527071,3.92016674,2352.2,2351.4,3.0307]
[1725967527272,2.4207,2352.2,2351.5,0.39661424]
[1725967527451,3.92016674,2352.2,2351.6,0.55]
[1725967529561,3.92016674,2352.2,2351.6,0.93544954]
[1725967529740,2.2564,2352.4,2351.7,2.39063702]
[1725967529940,2.2564,2352.4,2351.8,0.63502742]
[1725967530263,2.2564,2352.4,2351.9,2.3056]
[1725967530466,2.2564,2352.4,2352.0,0.92908795]
[1725967531140,4.04110392,2352.6,2352.0,0.92908795]
[1725967531364,2.2564,2352.6,2352.0,0.92908795]
[1725967531735,1.78470392,2352.7,2352.1,2.3345]
[1725967531932,4.14160392,2353.0,2352.3,1.49946674]
[1725967532164,2.3569,2353.0,2352.4,3.18295627]
[1725967532381,1.78470392,2353.1,2352.5,1.49946674]
[1725967532543,4.14160392,2353.3,2352.6,0.63500058]
[1725967532742,4.14160392,2353.3,2352.6,1.10324288]
[1725967533160,5.64107066,2353.3,2352.6,1.10324288]
[1725967533873,2.3569,2353.3,2352.6,1.10324288]
[1725967534039,2.3569,2353.3,2352.7,0.26027096]
[1725967534241,2.3569,2353.3,2352.8,0.55]
[1725967534875,3.85636674,2353.3,2352.8,0.55]
[1725967537969,3.85636674,2353.3,2352.8,2.8169]
[1725967538169,1.49946674,2353.3,2352.8,2.8169]
[1725967538369,1.49946674,2353.3,2352.8,5.12444133]
[1725967540271,1.49946674,2353.3,2352.8,0.55]
[1725967540592,2.4763,2353.2,2352.7,19.53]
[1725967543624,1.49946674,2353.1,2352.7,19.53]
[1725967543777,1.49946674,2352.9,2352.7,19.53]
[1725967543988,1.49946674,2352.9,2352.3,2.3256]
[1725967544326,1.49946674,2352.9,2352.4,0.55]
[1725967545519,1.74709674,2353.1,2352.4,0.55]
[1725967548328,0.42233967,2353.0,2352.4,0.55]
[1725967549695,0.42233967,2353.0,2352.4,0.63500835]
[1725967549898,1.74709674,2353.1,2352.4,0.63500835]
[1725967550302,1.74709674,2353.1,2352.4,0.55]
[1725967552443,2.3765,2353.0,2352.4,0.55]
[1725967552611,1.49946674,2352.9,2352.4,0.55]
[1725967556344,1.49946674,2352.9,2352.3,0.55]
[1725967556555,2.3765,2353.0,2352.3,2.73149]
[1725967556846,2.2531,2353.2,2352.4,2.43460822]
[1725967557003,2.2531,2353.2,2352.5,0.55]
[1725967557204,5.2531,2353.2,2352.5,0.55]
[1725967559910,1.49946674,2353.1,2352.5,0.55]
[1725967560107,4.49946674,2353.1,2352.5,0.55]
[1725967560435,5.17472341,2353.1,2352.5,0.55]
[1725967560952,1.49946674,2352.9,2352.2,21.8123]
[1725967561133,1.49946674,2352.9,2352.3,0.42700181]
[1725967561340,4.49946674,2352.9,2352.2,21.8123]
[1725967561645,4.49946674,2352.9,2352.3,2.60827862]
[1725967561817,4.49946674,2352.9,2352.3,2.18123]
[1725967565052,4.49946674,2352.9,2352.2,2.2823]
[1725967565355,4.49946674,2352.9,2352.3,0.55]
[1725967568214,2.3915,2352.8,2352.3,0.55]
[1725967568415,1.49946674,2352.7,2352.3,0.55]
[1725967568648,2.3915,2352.6,2352.2,19.53]
[1725967569559,2.78059667,2352.6,2352.2,19.53]
[1725967569724,1.49946674,2352.5,2352.2,19.53]
[1725967572249,2.4572,2352.4,2352.2,19.53]
[1725967572416,2.4572,2352.4,2351.8,2.4108]
[1725967572417,2.4572,2352.4,2352.1,19.53]
[1725967576979,2.4572,2352.4,2352.2,19.53]
[1725967583079,2.4572,2352.4,2351.9,1.13902667]
[1725967592263,4.49946674,2352.7,2352.2,0.55]
[1725967593660,6.28417066,2352.7,2352.2,0.55]
[1725967594348,2.3146,2352.4,2351.9,0.68333382]
[1725967594548,1.49946674,2352.3,2351.8,19.53]
[1725967594986,1.49946674,2352.3,2351.7,19.53]
[1725967595163,1.49946674,2352.3,2351.7,21.2847333]
[1725967595898,1.49946674,2352.3,2351.8,0.55]
[1725967597786,2.3146,2352.4,2351.8,0.55]
[1725967598150,5.3146,2352.4,2351.8,0.55]
[1725967598350,6.39734569,2352.4,2351.8,0.55]
[1725967603164,7.09930392,2352.4,2351.8,0.55]
[1725967603365,5.3146,2352.4,2351.8,0.55]
[1725967604201,7.09930392,2352.4,2351.8,0.55]
[1725967604404,5.3146,2352.4,2351.8,2.00435382]
[1725967604595,5.3146,2352.4,2351.9,2.34982042]
[1725967605812,7.09930392,2352.4,2351.9,2.34982042]
[1725967606014,5.3146,2352.4,2351.9,2.34982042]
[1725967606216,7.09930392,2352.4,2351.9,2.34982042]
[1725967607622,7.09930392,2352.4,2351.8,0.55]
[1725967608535,2.4375,2352.3,2351.8,0.55]
[1725967612820,2.4375,2352.3,2351.9,0.970188]
[1725967613006,2.4375,2352.3,2351.8,0.55]
[1725967613212,2.4375,2352.3,2351.9,0.97018658]
[1725967613449,2.4375,2352.3,2351.8,1.4425276]
[1725967613753,2.4375,2352.3,2351.8,3.21158694]
[1725967613910,2.4375,2352.3,2351.9,0.97034715]
[1725967614110,2.4375,2352.3,2351.8,3.21158694]
[1725967614324,2.4375,2352.3,2351.9,0.97034496]
[1725967614526,2.4375,2352.3,2351.8,3.21158694]
[1725967614834,2.4375,2352.3,2351.9,2.47054373]
[1725967615982,2.4375,2352.3,2352.0,0.97037055]
[1725967616181,2.4375,2352.3,2351.9,2.47054373]
[1725967616352,2.4375,2352.3,2351.9,2.55556971]
[1725967616779,2.4375,2352.3,2351.9,2.47054373]
[1725967617080,2.4375,2352.3,2352.0,0.97038935]
[1725967617379,2.4375,2352.3,2351.9,2.47054373]
[1725967617949,2.4375,2352.3,2351.8,0.55]
[1725967618343,2.4375,2352.3,2351.9,0.97042223]
[1725967618574,2.4375,2352.3,2351.8,0.55]
[1725967618771,2.4375,2352.3,2351.9,0.97041335]
[1725967619084,2.4375,2352.3,2351.8,20.08]
[1725967619265,2.4375,2352.3,2351.9,0.97041155]
[1725967619583,2.4375,2352.3,2351.8,20.08]
[1725967619744,2.4375,2352.3,2351.9,4.63036854]
[1725967619945,2.4375,2352.3,2351.9,2.20438504]
[1725967620866,2.4375,2352.3,2352.0,0.97038692]
[1725967621063,2.4375,2352.3,2351.9,2.20438504]
[1725967624256,2.4375,2352.3,2351.8,20.9725276]
[1725967624452,2.4375,2352.3,2351.9,2.42599476]
[1725967624679,2.4375,2352.3,2351.8,20.9725276]
[1725967624887,2.4375,2352.3,2351.9,2.42600603]
[1725967625087,2.4375,2352.3,2351.8,20.9725276]
[1725967625382,2.4375,2352.3,2351.9,0.97040214]
[1725967625593,2.4375,2352.3,2351.8,20.9725276]
[1725967625759,2.4375,2352.3,2351.9,0.97042397]
[1725967625958,2.4375,2352.3,2351.8,20.9725276]
[1725967626265,2.4375,2352.3,2351.9,2.42606608]
[1725967626595,2.4375,2352.3,2351.8,20.9725276]
[1725967626752,2.4375,2352.3,2351.9,2.42607878]
[1725967627089,2.4375,2352.3,2351.8,22.66312418]
[1725967627242,2.4375,2352.3,2351.9,2.42608212]
[1725967627448,4.22220392,2352.3,2351.8,22.66312418]
[1725967629657,2.4375,2352.3,2351.8,22.66312418]
[1725967629978,2.4375,2352.3,2351.9,0.97046046]
[1725967630143,2.4375,2352.3,2351.8,22.66312418]
[1725967630338,2.4375,2352.3,2351.9,0.9704558]
[1725967630570,2.4375,2352.3,2351.8,22.66312418]
[1725967630774,2.4375,2352.3,2351.9,0.9704559]
[1725967630973,2.4375,2352.3,2351.8,22.66312418]
[1725967631174,2.4375,2352.3,2351.9,3.43314085]
[1725967631519,2.4375,2352.3,2351.9,2.54772534]
[1725967631700,2.4375,2352.3,2351.9,2.54772539]
[1725967632387,2.4375,2352.3,2351.9,2.46269745]
[1725967634232,2.4375,2352.3,2351.8,20.08]
[1725967634425,2.4375,2352.3,2351.9,0.97048562]
[1725967634603,2.4375,2352.3,2351.8,20.08]
[1725967634802,2.4375,2352.3,2351.9,0.97049634]
[1725967634998,2.4375,2352.3,2351.8,20.08]
[1725967635199,2.4375,2352.3,2351.9,0.97048707]
[1725967635514,2.4375,2352.3,2351.8,20.08]
[1725967635727,2.4375,2352.3,2351.9,0.97049189]
[1725967635909,2.4375,2352.3,2351.8,20.08]
[1725967636110,2.4375,2352.3,2351.9,3.1748813]
[1725967636311,2.4375,2352.3,2351.9,2.20438504]
[1725967636631,1.78470392,2352.4,2352.0,0.63502593]
[1725967636835,1.78470392,2352.6,2352.1,2.42611655]
[1725967637038,1.78470392,2352.6,2352.2,0.55]
[1725967637343,4.68577617,2352.7,2352.2,0.55]
[1725967637344,1.78470392,2352.7,2352.3,1.58448072]
[1725967637525,1.78470392,2352.8,2352.4,0.45456807]
[1725967639441,1.78470392,2352.8,2352.2,2.9612]
[1725967641043,1.78470392,2352.8,2352.2,4.41583881]
[1725967641195,1.78470392,2352.8,2352.2,2.9612]
[1725967641537,4.26570392,2352.8,2352.2,2.9612]
[1725967642155,2.481,2352.8,2352.2,4.41565714]
[1725967642303,4.26570392,2352.8,2352.3,0.74768593]
[1725967643415,2.481,2352.8,2352.3,0.74768593]
[1725967643995,4.26570392,2352.8,2352.3,0.74768593]
[1725967644215,2.481,2352.8,2352.3,0.74768593]
[1725967644826,4.26570392,2352.8,2352.3,0.74768593]
[1725967645116,2.481,2352.8,2352.3,0.74768593]
[1725967647843,4.26570392,2352.8,2352.3,0.74768593]
[1725967648051,2.481,2352.8,2352.2,22.4912]
[1725967651183,4.26570392,2352.8,2352.2,22.4912]
[1725967655081,5.76517066,2352.8,2352.2,19.53]
[1725967655235,2.58405701,2352.7,2352.2,19.53]
[1725967656138,1.78470392,2352.6,2352.2,19.53]
[1725967656853,2.58405701,2352.7,2352.2,19.53]
[1725967657179,1.78470392,2352.6,2352.2,19.53]
[1725967657335,2.88682835,2352.6,2352.2,19.53]
[1725967657539,1.78470392,2352.6,2352.2,19.53]
[1725967659280,2.22820887,2352.7,2352.2,19.53]
[1725967659281,1.78470392,2352.7,2352.2,19.53]
[1725967659636,1.78470392,2352.7,2352.3,2.4026]
[1725967660517,1.78470392,2352.6,2352.3,2.4026]
[1725967661177,1.78470392,2352.7,2352.3,2.4026]
[1725967661383,1.78470392,2352.6,2352.3,2.4026]
[1725967661867,1.78470392,2352.7,2352.3,2.4026]
[1725967662076,1.78470392,2352.8,2352.4,0.08502162]
[1725967662445,1.78470392,2352.9,2352.5,2.3346]
[1725967662988,1.78470392,2352.9,2352.5,2.72650884]
[1725967663142,1.78470392,2353.0,2352.6,0.63500903]
[1725967663345,1.78470392,2353.1,2352.7,2.3735]
[1725967663745,4.78470392,2353.1,2352.7,2.3735]
[1725967663989,1.78470392,2353.0,2352.7,2.3735]
[1725967670566,1.78470392,2352.9,2352.5,21.8468]
[1725967671383,1.78470392,2352.9,2352.5,19.53]
[1725967671591,2.88247339,2352.9,2352.5,19.53]
[1725967672876,2.88247339,2352.9,2352.3,2.3168]
[1725967673077,2.88247339,2352.9,2352.4,0.55]
[1725967673511,1.78470392,2352.8,2352.4,0.55]
[1725967674323,2.88247339,2352.9,2352.4,0.55]
[1725967674511,1.78470392,2352.8,2352.4,0.55]
[1725967675674,4.14720392,2352.8,2352.4,0.55]
[1725967675946,4.14720392,2352.8,2352.3,0.55]
[1725967677171,4.14720392,2352.8,2352.2,21.9847]
[1725967677373,4.14720392,2352.8,2352.2,2.4547]
[1725967680244,1.78470392,2352.7,2352.2,2.4547]
[1725967680553,1.78470392,2352.7,2352.2,4.80311667]
[1725967681649,1.78470392,2352.7,2352.2,2.4547]
[1725967683201,2.4343,2352.7,2352.2,2.4547]
[1725967683547,4.21900392,2352.7,2352.2,2.4547]
[1725967684857,1.78470392,2352.6,2352.2,2.4547]
[1725967685786,1.78470392,2352.7,2352.2,2.4547]
[1725967685992,1.78470392,2352.6,2352.2,2.4547]
[1725967687286,2.18617065,2352.6,2352.2,2.4547]
[1725967687788,4.59787065,2352.6,2352.2,2.4547]
[1725967688089,4.59787065,2352.6,2352.0,19.53]
[1725967688090,4.59787065,2352.6,2352.0,21.9436]
[1725967688249,4.59787065,2352.6,2352.1,0.55]
[1725967688450,0.68275819,2352.5,2352.1,0.55]
[1725967688750,2.46746211,2352.5,2352.0,21.9436]
[1725967689374,2.46746211,2352.5,2352.0,19.53]
[1725967690210,2.46746211,2352.5,2351.8,2.4119]
[1725967690503,0.90098068,2352.4,2351.9,0.55]
[1725967690730,2.6856846,2352.4,2351.9,0.55]
[1725967691614,0.90098068,2352.4,2351.9,0.55]
[1725967691821,1.78470392,2352.5,2351.9,0.55]
[1725967691981,1.78470392,2352.4,2351.9,0.55]
[1725967692177,2.4793,2352.3,2351.9,0.55]
[1725967692422,2.72723,2352.3,2351.9,0.55]
[1725967692577,2.4793,2352.3,2351.9,0.55]
[1725967693020,4.16260392,2352.5,2351.9,0.55]
[1725967693622,4.16260392,2352.5,2352.0,2.3964]
[1725967693826,1.78470392,2352.5,2352.0,2.3964]
[1725967694626,4.78470392,2352.6,2352.0,2.3964]
[1725967694785,5.68263272,2352.6,2352.0,2.3964]
[1725967695423,1.78470392,2352.5,2352.0,2.3964]
[1725967695722,4.78470392,2352.6,2352.0,2.3964]
[1725967696824,4.78470392,2352.6,2352.0,4.87901223]
[1725967697028,1.78470392,2352.7,2352.1,2.8322]
[1725967697187,1.78470392,2352.7,2352.3,2.2822]
[1725967697392,1.78470392,2352.7,2352.3,2.36721261]
[1725967697615,4.07290392,2352.9,2352.3,2.81738181]
[1725967697922,1.78470392,2352.8,2352.3,2.81738181]
[1725967698344,1.78470392,2352.9,2352.4,2.8866]
[1725967698648,2.22852122,2353.0,2352.4,2.8866]
[1725967698649,1.78470392,2353.0,2352.6,2.3366]
[1725967698876,4.78470392,2353.1,2352.6,3.02217564]
[1725967699140,4.78470392,2353.1,2352.6,2.3366]
[1725967699346,1.78470392,2353.0,2352.6,2.3366]
[1725967699645,4.78470392,2353.1,2352.6,2.3366]
[1725967699852,1.78470392,2353.0,2352.6,2.3366]
[1725967700015,4.78470392,2353.1,2352.6,2.3366]
[1725967700229,1.78470392,2353.0,2352.6,3.02217564]
[1725967701505,1.78470392,2353.2,2352.7,0.55]
[1725967701705,1.78470392,2353.2,2352.7,0.90721756]
[1725967702910,1.78470392,2353.1,2352.7,0.90721756]
[1725967703109,1.78470392,2353.2,2352.7,0.55]
[1725967704002,1.78470392,2353.1,2352.6,2.3366]
[1725967704207,4.10630392,2353.1,2352.6,2.3366]
[1725967708779,1.78470392,2353.1,2352.6,2.3366]
[1725967713377,1.78470392,2353.0,2352.6,2.3366]
[1725967713559,1.78470392,2352.9,2352.6,2.3366]
[1725967713783,2.56649441,2352.9,2352.6,2.3366]
[1725967713982,0.78179049,2352.9,2352.6,2.3366]
[1725967714358,1.78470392,2353.0,2352.6,2.3366]
[1725967715063,1.78470392,2353.1,2352.6,2.3366]
[1725967715266,4.78470392,2353.1,2352.6,2.3366]
[1725967715605,3.01171459,2353.2,2352.6,2.3366]
[1725967715606,2.57066534,2353.2,2352.6,2.3366]
[1725967715774,1.78470392,2353.1,2352.6,2.3366]
[1725967715976,2.57066534,2353.2,2352.6,2.3366]
[1725967716189,1.78470392,2353.1,2352.6,2.3366]
[1725967716705,2.57066534,2353.2,2352.6,2.3366]
[1725967717010,1.78470392,2353.1,2352.6,2.3366]
[1725967717561,2.22575317,2353.3,2352.6,2.3366]
[1725967717562,1.78470392,2353.3,2352.8,2.3414]
[1725967717759,5.22575317,2353.4,2352.8,2.3414]
[1725967717760,1.78470392,2353.4,2352.8,2.42639466]
[1725967717977,1.78470392,2353.5,2353.0,2.3414]
[1725967718157,2.22575317,2353.6,2353.0,2.3414]
[1725967718158,1.78470392,2353.4,2353.0,2.3414]
[1725967721864,3.28417066,2353.4,2353.0,2.3414]
[1725967722262,1.78470392,2353.3,2352.8,2.2576]
[1725967722486,3.05964989,2353.3,2352.8,2.2576]
[1725967723266,1.27494597,2353.3,2352.8,2.2576]
[1725967724891,3.05964989,2353.3,2352.8,2.2576]
[1725967732029,1.27494597,2353.3,2352.8,2.2576]
[1725967732206,3.05964989,2353.3,2352.8,2.2576]
[1725967733936,1.27494597,2353.3,2352.8,2.2576]
[1725967734600,0.45591166,2353.2,2352.8,2.2576]
[1725967734823,1.9553784,2353.2,2352.8,2.2576]
[1725967735130,6.05568232,2353.2,2352.6,9.9298]
[1725967735321,0.91153322,2353.1,2352.6,9.9298]
[1725967735521,5.69623714,2353.1,2352.6,9.9298]
[1725967738504,1.78470392,2353.0,2352.6,9.9298]
[1725967738703,1.78470392,2353.0,2352.6,2.4498]
[1725967740139,4.78470392,2353.1,2352.6,2.4498]
[1725967740301,1.78470392,2353.0,2352.6,2.4498]
[1725967742938,1.78470392,2353.0,2352.7,0.08500053]
[1725967743146,1.78470392,2353.0,2352.8,2.2855]
[1725967743316,1.78470392,2353.1,2352.8,2.2855]
[1725967743644,2.2271293,2353.2,2352.8,2.2855]
[1725967743645,1.78470392,2353.2,2352.8,2.2855]
[1725967743816,1.78470392,2353.2,2352.8,2.54704805]
[1725967745343,1.78470392,2353.1,2352.8,2.54704805]
[1725967746533,1.78470392,2353.2,2352.8,2.54704805]
[1725967748934,1.78470392,2353.3,2352.8,2.54704805]
[1725967749107,1.78470392,2353.2,2352.8,2.54704805]
[1725967749307,1.78470392,2353.3,2352.8,2.54704805]
[1725967749573,1.78470392,2353.2,2352.8,2.54704805]
[1725967750573,1.78470392,2353.2,2352.8,2.2855]
[1725967750958,1.78470392,2353.1,2352.8,2.2855]
[1725967751853,1.78470392,2353.2,2352.8,2.2855]
[1725967752833,1.78470392,2353.1,2352.8,2.2855]
[1725967753243,1.78470392,2353.2,2352.8,2.2855]
[1725967754155,1.78470392,2353.1,2352.8,2.2855]
[1725967755272,1.78470392,2353.2,2352.9,2.3347]
[1725967756276,1.78470392,2353.3,2352.9,2.3347]
[1725967756472,1.78470392,2353.3,2352.9,2.41968945]
[1725967756769,1.78470392,2353.3,2352.9,2.8798134]
[1725967756973,1.78470392,2353.2,2352.9,2.8798134]
[1725967757168,1.78470392,2353.3,2352.9,2.8798134]
[1725967758051,1.78470392,2353.3,2352.9,2.79482395]
[1725967759166,1.78470392,2353.3,2353.0,0.08498948]
[1725967759371,1.78470392,2353.3,2353.1,2.4674]
[1725967767431,1.78470392,2353.4,2353.1,2.4674]
[1725967770017,1.78470392,2353.3,2353.1,2.4674]
[1725967770389,1.78470392,2353.4,2353.1,2.4674]
[1725967780522,1.78470392,2353.5,2353.2,0.08498503]
[1725967780684,1.78470392,2353.6,2353.3,2.4766]
[1725967781529,1.78470392,2353.7,2353.3,2.4766]
[1725967781683,1.78470392,2353.7,2353.3,2.87273677]
[1725967781888,1.78470392,2353.7,2353.5,2.3068]
[1725967782285,4.78470392,2353.7,2353.5,2.3068]
[1725967785029,1.78470392,2353.8,2353.6,1.58443841]
[1725967785205,2.22985586,2353.9,2353.6,1.58443841]
[1725967785206,1.78470392,2353.9,2353.7,0.38912384]
[1725967785409,1.78470392,2354.0,2353.8,2.3835]
[1725967786293,1.78470392,2354.1,2353.8,2.3835]
[1725967786633,4.78470392,2354.1,2353.8,2.3835]
[1725967789594,1.78470392,2354.1,2353.8,2.3835]
[1725967790292,4.78470392,2354.2,2353.8,2.3835]
[1725967790736,1.49946674,2354.1,2353.6,22.5563]
[1725967791036,5.87819214,2354.2,2353.6,22.5563]
[1725967791037,1.49946674,2353.7,2353.6,19.53]
[1725967792641,3.28417066,2353.9,2353.6,19.53]
[1725967794802,1.78470392,2353.8,2353.6,19.53]
[1725967795002,3.28417066,2353.9,2353.6,19.53]
[1725967795223,3.94149041,2353.9,2353.6,19.53]
[1725967795624,3.94149041,2353.9,2353.3,7.48]
[1725967795880,3.94149041,2353.9,2353.2,2.33]
[1725967796035,3.94149041,2353.9,2353.4,2.4352]
[1725967797733,1.78470392,2354.0,2353.4,2.4352]
[1725967797931,1.78470392,2353.9,2353.4,2.4352]
[1725967799732,4.78470392,2354.0,2353.4,2.4352]
[1725967799947,5.94235762,2354.0,2353.4,2.4352]
[1725967800888,4.14750392,2353.9,2353.4,2.4352]
[1725967801033,5.64697066,2353.9,2353.3,0.55]
[1725967801672,5.64697066,2353.9,2353.2,2.4606]
[1725967801974,5.64697066,2353.9,2353.2,5.40766]
[1725967804463,5.64697066,2353.9,2353.2,2.4606]
[1725967804940,4.11080392,2353.8,2353.2,2.4606]
[1725967805656,4.11080392,2353.8,2353.2,2.54558759]
[1725967805862,2.3261,2353.8,2353.2,2.54558759]
[1725967806371,2.4337,2353.7,2353.1,19.53]
[1725967806581,2.4337,2353.7,2353.2,0.55]
[1725967808934,1.78470392,2353.9,2353.3,2.2579]
[1725967809133,9.16201032,2354.0,2353.3,2.2579]
[1725967809134,1.78470392,2353.8,2353.3,2.2579]
[1725967809335,2.4349,2353.8,2353.3,2.2579]
[1725967810358,4.21960392,2353.8,2353.3,2.2579]
[1725967810563,5.71907066,2353.8,2353.1,19.53]
[1725967810748,3.80516674,2353.6,2353.1,19.53]
[1725967810950,3.89220883,2353.7,2352.7,0.8925276]
[1725967810951,1.49946674,2353.4,2352.8,2.4484]
[1725967811173,2.3057,2353.3,2352.8,2.4484]
[1725967812048,1.49946674,2353.4,2352.8,2.4484]
[1725967812281,4.78470392,2353.6,2353.0,2.2568]
[1725967812448,1.78470392,2353.6,2353.1,0.28917937]
[1725967812643,3.0,2353.5,2353.0,2.34178601]
[1725967812845,3.0,2353.6,2353.3,2.2568]
[1725967813075,3.0,2353.7,2353.3,2.2568]
[1725967815969,1.78470392,2353.8,2353.3,2.2568]
[1725967816176,3.0,2353.8,2353.3,2.2568]
[1725967816352,1.78470392,2353.8,2353.3,2.2568]
[1725967816552,6.28417066,2353.9,2353.3,2.490978]
[1725967816769,1.78470392,2353.8,2353.3,2.2568]
[1725967817172,6.28417066,2353.9,2353.3,2.2568]
[1725967817395,6.28417066,2353.9,2353.3,2.490978]
[1725967817560,1.78470392,2353.8,2353.3,2.490978]
[1725967818539,1.78470392,2353.8,2353.3,2.2568]
[1725967818696,4.07780392,2353.8,2353.3,2.2568]
[1725967819795,1.78470392,2353.7,2353.3,2.2568]
[1725967819944,1.78470392,2353.7,2353.1,2.3673]
[1725967820149,1.78470392,2353.7,2353.1,4.69701258]
[1725967820897,1.78470392,2353.7,2353.1,2.3673]
[1725967820898,3.28417066,2353.7,2353.1,2.3673]
[1725967821060,1.49946674,2353.5,2353.0,19.53]
[1725967821791,3.28417066,2353.5,2353.0,19.53]
[1725967821962,0.86548707,2353.4,2353.0,19.53]
[1725967822163,7.15540392,2353.6,2353.0,19.53]
[1725967822358,4.78470392,2353.6,2353.1,2.387]
[1725967823054,3.0,2353.5,2353.1,2.387]
[1725967823289,1.78470392,2353.6,2353.1,2.387]
[1725967824062,4.78470392,2353.7,2353.1,2.387]
[1725967824478,1.78470392,2353.6,2353.1,2.387]
[1725967824876,1.78470392,2353.7,2353.2,0.0849879]
[1725967825078,1.78470392,2353.8,2353.3,3.0408]
[1725967825295,1.78470392,2353.9,2353.5,2.4908]
[1725967829054,1.78470392,2354.0,2353.5,2.4908]
[1725967829295,4.78470392,2354.0,2353.6,0.30382978]
[1725967830686,4.78470392,2354.0,2353.5,2.4908]
[1725967831073,1.78470392,2353.9,2353.5,2.4908]
[1725967831299,4.78470392,2354.0,2353.5,2.57576823]
[1725967831486,4.78470392,2354.0,2353.6,0.30382937]
[1725967831806,1.78470392,2353.9,2353.6,0.30382937]
[1725967832423,1.49946674,2353.8,2353.3,21.8638]
[1725967832569,1.49946674,2353.8,2353.3,19.53]
[1725967832570,3.80046674,2353.6,2353.3,19.53]
[1725967832910,5.58517066,2353.6,2353.3,19.53]
[1725967833109,1.78470392,2353.5,2353.3,19.53]
[1725967833404,6.81222486,2353.6,2353.3,19.53]
[1725967833405,6.36670964,2353.6,2353.3,19.53]
[1725967833709,2.5662429,2353.6,2353.3,19.53]